fUST/lending_fUST_20250524
["ID","MTS","AMOUNT","RATE_DAILY","PERIOD"]
[362146277,1748037039083,-363.7241891,0.00023945,2]
[362146278,1748037039092,-363.7241891,0.00023945,2]
[362146279,1748037039102,-363.7241891,0.00023945,2]
[362146280,1748037039112,-363.7241891,0.00023945,2]
[362146281,1748037039122,-363.7241891,0.00023945,2]
[362146282,1748037039133,-639.759873,0.00023945,2]
[362146283,1748037039144,-18286.4263268,0.00023959,2]
[362146284,1748037039155,-500.0,0.0002397,2]
[362146285,1748037039166,-158.147005,0.00023973,2]
[362146286,1748037039177,-500.0,0.00024007,2]
[362146287,1748037039188,-335.55717764,0.00024072,10]
[362146288,1748037039198,-946.46614659,0.00024073,2]
[362146289,1748037039207,-336.0106597,0.00024219,2]
[362146290,1748037039216,-321.8536889,0.00024219,2]
[362146291,1748037039226,-154.2938119,0.00024219,2]
[362146292,1748037039235,-201.4468235,0.00024219,2]
[362146293,1748037039247,-550.63966727,0.00024322,2]
[362146294,1748037039257,-335.55717764,0.00024348,11]
[362146295,1748037039266,-329.59646,0.00024473,2]
[362146296,1748037039276,-550.63966727,0.00024503,2]
[362146297,1748037039285,-335.55717764,0.00024624,11]
[362146298,1748037039296,-257.91778498,0.00024642,2]
[362146300,1748037039306,-231.32399792,0.00024658,2]
[362146301,1748037039317,-54355.62390672,0.0002475,2]
[362146302,1748037039327,-355.0258361,0.00024767,2]
[362146303,1748037039338,-7647.0226416,0.000248,2]
[362146304,1748037039348,-929.85834006,0.00024808,2]
[362146305,1748037039358,-502.64702487,0.00024873,2]
[362146306,1748037039368,-500.0,0.00024873,2]
[362146308,1748037039378,-500.0,0.00024873,2]
[362146309,1748037039389,-500.0,0.00024873,2]
[362146310,1748037039398,-500.0,0.00024875,7]
[362146311,1748037039408,-1911.7556604,0.0002489,2]
[362146312,1748037039418,-9558.778302,0.0002489,2]
[362146313,1748037039427,-20593.33,0.000249,2]
[362146314,1748037039436,-1601.05510215,0.000249,2]
[362146315,1748037039446,-196824.741249,0.000249,2]
[362146317,1748037039456,-335.55717764,0.000249,12]
[362146319,1748037039465,-185.96269,0.000249,2]
[362146321,1748037039474,-185.96269,0.000249,2]
[362146322,1748037039483,-151.0,0.000249,7]
[362146323,1748037039493,-167.72462913,0.000249,2]
[362146324,1748037039502,-600.0,0.00024973,2]
[362146325,1748037039511,-500.0,0.00024973,2]
[362146327,1748037039521,-500.0,0.00024973,2]
[362146328,1748037039530,-151.0,0.0002499,2]
[362146330,1748037039539,-1601.05510215,0.00024994,2]
[362146331,1748037039548,-103492.69304955,0.00025,2]
[362146332,1748037039557,-6406.71066127,0.00025,3]
[362146333,1748037039566,-436174.44512136,0.00025,30]
[362146335,1748037039702,-300.0,0.00016438,2]
[362146701,1748037162599,1999.8,0.00025844,30]
[362146704,1748037345087,-179.46869197,0.00013562,2]
[362146705,1748037347210,-227.51288931,0.00013562,2]
[362146706,1748037351150,-164.83253891,0.00013562,2]
[362146707,1748037353642,-249.64860836,0.00013562,2]
[362146708,1748037355335,-319.81311882,0.00013562,2]
[362146709,1748037358122,-163.33083919,0.00013562,2]
[362146710,1748037361763,-259.57282763,0.00013562,2]
[362146711,1748037363916,-263.22628436,0.00013562,2]
[362146712,1748037367697,-172.58301585,0.00013562,2]
[362146713,1748037369687,-338.43435853,0.00013562,2]
[362146714,1748037371720,-158.96908279,0.00013562,2]
[362146715,1748037374507,-169.047256,0.00013562,2]
[362146716,1748037378024,-208.35025752,0.00013562,2]
[362146717,1748037381128,-200.0,0.00013562,2]
[362146718,1748037381457,505.422085,0.00027397,120]
[362146719,1748037383301,-162.77430179,0.00013562,2]
[362146720,1748037384856,-152.0,0.00013562,2]
[362146721,1748037387397,-241.80872783,0.00013562,2]
[362146722,1748037389710,-162.22875713,0.00013562,2]
[362146723,1748037393083,-200.06862657,0.00013562,2]
[362146724,1748037394491,-328.72610313,0.00013562,2]
[362146725,1748037397049,-380.70569851,0.00013562,2]
[362146726,1748037399058,-193.53855605,0.00013562,2]
[362146727,1748037400737,-103.35945975,0.00013562,2]
[362146728,1748037417395,-204.67900133,0.00013562,2]
[362146752,1748037467921,-4606.0,0.00013562,2]
[362146753,1748037631065,-5000.0,0.00013426,2]
[362146757,1748037893036,-3678.0,0.00013426,2]
[362146759,1748037912306,-189.42468073,0.00013426,2]
[362146760,1748037915371,-162.98376614,0.00013426,2]
[362146761,1748037962166,-250.0,0.00013426,2]
[362146905,1748038029251,-4910.0,0.00013292,2]
[362147075,1748038232299,-542.75,0.00013562,2]
[362147199,1748038240663,-0.04742153,0.00013562,2]
[362147438,1748038243317,-4457.20257847,0.00013562,2]
[362147440,1748038243332,-158.147005,0.00013699,2]
[362147442,1748038243343,-242.75510898,0.00015939,2]
[362147444,1748038243353,-5347.4673651,0.0001604,2]
[362147446,1748038243363,-239.04821088,0.00017256,2]
[362147448,1748038243373,-300.0,0.00017256,2]
[362147450,1748038243383,-229.0,0.00017256,2]
[362147452,1748038243393,-300.0,0.00017256,2]
[362147454,1748038243404,-50000.0,0.00017257,2]
[362147456,1748038243413,-284.25,0.00017257,2]
[362147458,1748038243423,-430.0,0.00017257,2]
[362147460,1748038243432,-430.0,0.00017257,2]
[362147462,1748038243442,-430.0,0.00017257,2]
[362147464,1748038243452,-430.0,0.00017257,2]
[362147466,1748038243462,-430.0,0.00017257,2]
[362147468,1748038243471,-210.0,0.00017258,2]
[362147470,1748038243481,-546.69,0.00017258,2]
[362147472,1748038243491,-190.91730561,0.00017431,2]
[362147474,1748038243501,-430.0,0.00017531,2]
[362147476,1748038243510,-430.0,0.00017531,2]
[362147478,1748038243519,-430.0,0.00017531,2]
[362147480,1748038243529,-430.0,0.00017531,2]
[362147482,1748038243539,-430.0,0.00017531,2]
[362147484,1748038243549,-430.0,0.00017805,2]
[362147486,1748038243559,-430.0,0.00017805,2]
[362147488,1748038243568,-430.0,0.00017805,2]
[362147490,1748038243578,-430.0,0.00017805,2]
[362147492,1748038243588,-430.0,0.00017805,2]
[362147494,1748038243598,-430.0,0.00018079,2]
[362147496,1748038243608,-430.0,0.00018079,2]
[362147498,1748038243617,-430.0,0.00018079,2]
[362147500,1748038243628,-430.0,0.00018079,2]
[362147502,1748038243637,-430.0,0.00018079,2]
[362147504,1748038243647,-160.0,0.00018121,2]
[362147506,1748038243658,-274.31375634,0.00018121,2]
[362147508,1748038243667,-160.0,0.00018124,2]
[362147510,1748038243677,-12647.66147447,0.00018124,2]
[362147512,1748038243686,-212.48480548,0.00018124,2]
[362147514,1748038243696,-422.85710789,0.00018124,2]
[362147516,1748038243706,-430.0,0.00018353,2]
[362147518,1748038243715,-430.0,0.00018353,2]
[362147520,1748038243725,-430.0,0.00018353,2]
[362147522,1748038243735,-430.0,0.00018353,2]
[362147524,1748038243744,-430.0,0.00018353,2]
[362147526,1748038243754,-430.0,0.00018627,2]
[362147528,1748038243763,-430.0,0.00018627,2]
[362147530,1748038243773,-430.0,0.00018627,2]
[362147532,1748038243783,-430.0,0.00018627,2]
[362147534,1748038243794,-430.0,0.00018627,2]
[362147536,1748038243803,-420.0,0.00018842,2]
[362147538,1748038243813,-451.74424341,0.000189,2]
[362147540,1748038243822,-430.0,0.00018901,2]
[362147542,1748038243832,-430.0,0.00018901,2]
[362147544,1748038243843,-430.0,0.00018901,2]
[362147546,1748038243852,-430.0,0.00018901,2]
[362147549,1748038243862,-430.0,0.00018901,2]
[362147551,1748038243872,-430.0,0.00019175,2]
[362147552,1748038243881,-430.0,0.00019175,2]
[362147555,1748038243891,-430.0,0.00019175,2]
[362147556,1748038243901,-177.52,0.00019175,2]
[362147559,1748038243911,-430.0,0.00019175,2]
[362147561,1748038243921,-343.30773384,0.00019449,2]
[362147562,1748038243931,-508.13,0.00019449,2]
[362147564,1748038243940,-438.89887153,0.00019449,2]
[362147566,1748038243950,-430.0,0.00019449,2]
[362147569,1748038243960,-960.0,0.00019843,2]
[362147571,1748038243969,-242.75510897,0.0002037,2]
[362147573,1748038243979,-180.0,0.00020575,2]
[362147574,1748038243992,-207.4,0.00021132,2]
[362147577,1748038244002,-190.9173056,0.00021166,2]
[362147579,1748038244012,-164.416,0.00021168,2]
[362147581,1748038244022,-200.0,0.00021759,2]
[362147583,1748038244032,-215.0738,0.00022501,2]
[362147585,1748038244041,-500.0,0.00022683,2]
[362147587,1748038244051,-7452.81,0.0002385,10]
[362147589,1748038244060,-8943.37,0.0002386,10]
[362147591,1748038244070,-223.0315306,0.0002387,2]
[362147593,1748038244080,-10732.05,0.0002389,10]
[362147595,1748038244090,-451.74424341,0.000239,2]
[362147597,1748038244100,-422.85710789,0.00024288,10]
[362147599,1748038244109,-5627.91,0.00024297,10]
[362147601,1748038244119,-402.58289319,0.00024306,2]
[362147603,1748038244128,-500.0,0.00024306,2]
[362147605,1748038244138,-500.0,0.00024306,2]
[362147607,1748038244147,-500.0,0.00024306,2]
[362147609,1748038244157,-239.01172479,0.00024306,2]
[362147611,1748038244167,-500.0,0.00024306,2]
[362147613,1748038244177,-500.0,0.00024306,2]
[362147615,1748038244186,-500.0,0.00024306,2]
[362147617,1748038244196,-500.0,0.00024306,2]
[362147619,1748038244206,-500.0,0.00024306,2]
[362147621,1748038244215,-265.3523923,0.00024306,2]
[362147623,1748038244224,-500.0,0.00024306,2]
[362147625,1748038244235,-500.0,0.00024306,2]
[362147627,1748038244244,-500.0,0.00024306,2]
[362147629,1748038244254,-500.0,0.00024306,2]
[362147631,1748038244263,-500.0,0.00024306,2]
[362147633,1748038244273,-500.0,0.00024306,2]
[362147635,1748038244282,-5929.77,0.00024307,2]
[362147637,1748038244291,-2200.0,0.00024379,2]
[362147639,1748038244301,-417.514436,0.000245,2]
[362147641,1748038244310,-158.10231729,0.00024575,2]
[362147643,1748038244320,-161.92679855,0.00024658,2]
[362147645,1748038244333,-242.75510897,0.000248,2]
[362147647,1748038244343,-151.92616664,0.000248,2]
[362147649,1748038244352,-158.10231729,0.00024849,2]
[362147652,1748038244363,-1595.035718,0.00024873,2]
[362147653,1748038244372,-500.0,0.00024875,7]
[362147655,1748038244382,-1595.03571798,0.00024887,2]
[362147658,1748038244392,-151.92616663,0.0002489,2]
[362147660,1748038244402,-1280.84408172,0.000249,2]
[362147662,1748038244411,-186983.504187,0.000249,2]
[362147664,1748038244421,-1595.03571798,0.000249,2]
[362147666,1748038244431,-190.9173056,0.000249,2]
[362147668,1748038244440,-500.0,0.00024973,2]
[362147670,1748038244451,-500.0,0.00024973,2]
[362147672,1748038244460,-373967.008374,0.0002499,2]
[362147674,1748038244470,-186983.504187,0.0002499,2]
[362147676,1748038244479,-1280.84408172,0.00024991,2]
[362147678,1748038244489,-64758.32915401,0.00025,2]
[362147680,1748038244499,-3203.35533064,0.00025,3]
[362147682,1748038244508,-239854.11083283,0.00025,30]
[362147873,1748038246364,-11805.72452707,0.00025,30]
[362147875,1748038246377,-38850.83377396,0.00025,30]
[362148234,1748038347684,-159.52550825,0.00017256,2]
[362148235,1748038347707,-428.83922466,0.00017256,2]
[362148236,1748038347729,-314.57823366,0.00018121,2]
[362148237,1748038347754,-5000.0,0.00019644,2]
[362148238,1748038347776,-422.85710789,0.00019644,2]
[362148239,1748038347799,-160.0,0.00019644,2]
[362148240,1748038347821,-632.19992554,0.00019644,2]
[362148242,1748038530996,379.066563,0.00027397,120]
[362148245,1748038607316,-3280.37927947,0.00013562,2]
[362148246,1748038607340,-159.812897,0.00013699,2]
[362148247,1748038607368,-430.0,0.00017256,2]
[362148248,1748038607394,-430.0,0.00017256,2]
[362148249,1748038607420,-430.0,0.00017256,2]
[362148250,1748038607444,-658.0,0.00017256,2]
[362148251,1748038607471,-554.1,0.00017257,2]
[362148252,1748038607496,-430.0,0.00017257,2]
[362148253,1748038607523,-430.0,0.00017257,2]
[362148254,1748038607548,-430.0,0.00017257,2]
[362148255,1748038607570,-534.95,0.00017257,2]
[362148256,1748038607594,-430.0,0.0001753,2]
[362148257,1748038607618,-430.0,0.0001753,2]
[362148258,1748038607641,-430.0,0.0001753,2]
[362148259,1748038607664,-2748.75782353,0.0001753,2]
[362148260,1748038684796,-430.0,0.00017257,2]
[362148261,1748038684820,-430.0,0.00017257,2]
[362148262,1748038684842,-13375.0,0.0001753,2]
[362148322,1748039432156,-1808.85947,0.00017354,2]
[362148323,1748039432168,-2648.34310847,0.00017354,2]
[362148324,1748039432179,-430.0,0.00017529,2]
[362148325,1748039432189,-450.0,0.00017529,2]
[362148326,1748039432200,-453.57299444,0.00017529,2]
[362148327,1748039432210,-430.0,0.00017803,2]
[362148328,1748039432220,-229.0,0.00018057,2]
[362148329,1748039432231,-300.0,0.00018057,2]
[362148330,1748039432240,-7542.83875978,0.00018058,2]
[362148331,1748039432362,-2457.16124022,0.00018058,2]
[362148332,1748039432373,-208.50000001,0.00018077,2]
[362148333,1748039432383,-1182.8465128,0.00018183,2]
[362148336,1748039432393,-150.58141447,0.000189,2]
[362148338,1748039432403,-195.3270604,0.00019536,2]
[362148340,1748039432412,-11966.05853666,0.00019536,2]
[362148346,1748039438270,-239.04821088,0.00019535,2]
[362148347,1748039438280,-915.07561519,0.00019536,2]
[362148362,1748039440523,-13889.51409101,0.00019536,2]
[362148363,1748039440536,-850.41025125,0.00019536,2]
[362148371,1748039443365,-22378.94150589,0.00019536,2]
[362148372,1748039443375,-12647.66147447,0.00019617,2]
[362148373,1748039443384,-212.48480548,0.0001962,2]
[362148374,1748039443394,-430.0,0.00019623,2]
[362148375,1748039443403,-350.0,0.00019626,2]
[362148376,1748039443413,-430.0,0.00019626,2]
[362148377,1748039443423,-350.0,0.00019626,2]
[362148378,1748039443432,-352.75920492,0.00019626,2]
[362148379,1748039443441,-450.0,0.0001964,2]
[362148380,1748039443451,-430.0,0.0001964,2]
[362148381,1748039443460,-450.0,0.0001964,2]
[362148382,1748039443470,-404.0,0.00019843,2]
[362148383,1748039443479,-430.0,0.00019897,2]
[362148384,1748039443488,-232.05586051,0.000199,2]
[362148385,1748039443498,-232.05586025,0.00020072,2]
[362148386,1748039443508,-430.0,0.00020171,2]
[362148387,1748039443518,-232.05586025,0.00020245,2]
[362148388,1748039443527,-232.05586025,0.00020417,3]
[362148389,1748039443537,-200.0,0.00020439,2]
[362148390,1748039443547,-232.05586025,0.0002059,3]
[362148391,1748039443556,-232.05586025,0.00020762,3]
[362148392,1748039443566,-232.05586025,0.00020934,4]
[362148393,1748039443575,-232.05586025,0.00021107,4]
[362148394,1748039443584,-207.4,0.00021132,2]
[362148395,1748039443594,-164.416,0.00021168,2]
[362148396,1748039443603,-232.05586025,0.00021279,5]
[362148397,1748039443613,-232.05586025,0.00021452,5]
[362148398,1748039443623,-232.05586025,0.00021624,5]
[362148399,1748039443632,-232.05586025,0.00021797,6]
[362148400,1748039443641,-232.05586025,0.00021969,6]
[362148401,1748039443651,-232.05586025,0.00022141,6]
[362148402,1748039443661,-232.05586025,0.00022314,7]
[362148403,1748039443671,-175.119267,0.00022485,2]
[362148404,1748039443681,-232.05586025,0.00022486,7]
[362148405,1748039443691,-215.0738,0.00022501,2]
[362148406,1748039443701,-232.05586025,0.00022659,7]
[362148407,1748039443710,-500.0,0.00022683,2]
[362148408,1748039443721,-232.05586025,0.00022831,8]
[362148409,1748039443730,-404.0,0.00022843,2]
[362148410,1748039443740,-232.05586025,0.00023003,8]
[362148411,1748039443751,-232.05586025,0.00023176,8]
[362148412,1748039443764,-200.0,0.00023302,2]
[362148413,1748039443774,-232.05586025,0.00023348,9]
[362148414,1748039443783,-9565.3,0.0002348,10]
[362148415,1748039443794,-6417.7,0.0002349,10]
[362148416,1748039443804,-212.48480548,0.0002349,10]
[362148417,1748039443815,-7971.09,0.0002349,10]
[362148418,1748039443825,-500.0,0.00023499,2]
[362148419,1748039443836,-402.58289319,0.00023499,2]
[362148420,1748039443847,-500.0,0.00023499,2]
[362148421,1748039443857,-239.01172479,0.00023499,2]
[362148422,1748039443867,-500.0,0.00023499,2]
[362148423,1748039443877,-500.0,0.00023499,2]
[362148424,1748039443887,-500.0,0.00023499,2]
[362148425,1748039443896,-500.0,0.00023499,2]
[362148426,1748039443905,-500.0,0.00023499,2]
[362148427,1748039443915,-265.3523923,0.00023499,2]
[362148428,1748039443924,-38593.89582464,0.000235,7]
[362148429,1748039443934,-212.48480548,0.000235,7]
[362148430,1748039443944,-232.05586025,0.00023521,9]
[362148431,1748039443965,-232.05586025,0.00023693,9]
[362148432,1748039443975,-232.05586025,0.00023866,10]
[362148433,1748039443986,-223.0315306,0.0002387,2]
[362148434,1748039443996,-12560.59532039,0.000239,2]
[362148435,1748039444007,-150.58141447,0.000239,2]
[362148436,1748039444016,-232.05586025,0.00024038,10]
[362148437,1748039444026,-232.05586025,0.0002421,10]
[362148438,1748039444036,-2200.0,0.0002438,2]
[362148439,1748039444047,-232.05586025,0.00024383,11]
[362148440,1748039444057,-375.762993,0.000245,2]
[362148441,1748039444067,-232.05586025,0.00024555,11]
[362148442,1748039444078,-380.0,0.00024658,2]
[362148443,1748039444088,-161.92679855,0.00024658,2]
[362148444,1748039444098,-232.05586025,0.00024728,11]
[362148445,1748039444107,-1595.035718,0.000248,2]
[362148446,1748039444117,-500.0,0.00024875,7]
[362148447,1748039444127,-1024.67526543,0.000249,2]
[362148448,1748039444137,-149586.80335,0.000249,2]
[362148449,1748039444146,-232.05586025,0.000249,12]
[362148450,1748039444157,-5682.69,0.00024967,2]
[362148451,1748039444166,-429.84442276,0.00024971,2]
[362148452,1748039444176,-500.0,0.00024973,2]
[362148453,1748039444186,-160.0,0.00024979,2]
[362148454,1748039444198,-422.85710789,0.00024979,10]
[362148455,1748039444207,-299173.606699,0.0002499,2]
[362148456,1748039444217,-149586.80335,0.0002499,2]
[362148457,1748039444228,-1024.67526537,0.0002499,2]
[362148458,1748039444238,-422.85710789,0.00025,3]
[362148459,1748039444247,-12647.66147447,0.00025,3]
[362148460,1748039444257,-32379.164577,0.00025,2]
[362148461,1748039444268,-160.0,0.00025,3]
[362148462,1748039444279,-17843.15878182,0.00025,3]
[362148463,1748039444289,-212.48480548,0.00025,3]
[362148464,1748039444298,-833564.50691358,0.00025,30]
[362148465,1748039444315,-5424.79849838,0.00025,30]
[362148466,1748039444329,-683.35011933,0.00025,30]
[362148467,1748039444342,-2361.94846665,0.00025,30]
[362148476,1748039446321,-1463.28177226,0.0002485,2]
[362148480,1748039446623,-131.75394572,0.0002485,2]
[362148481,1748039446634,-423.50605428,0.0002499,10]
[362148482,1748039446647,-6219.06394572,0.0002499,10]
[362148483,1748039446657,-6161.34932888,0.00025,30]
[362148484,1748039446669,-3192.53909341,0.00025,30]
[362148485,1748039446681,-21059.52059969,0.00025,30]
[362148739,1748039565840,2990.0,0.00025814,30]
[362148961,1748039625014,284.299922,0.00027397,120]
[362149271,1748039818581,160.0,0.00013699,2]
[362149346,1748039878781,-717.21013026,0.00013699,2]
[362149627,1748040282238,-154.39425402,0.00013699,2]
[362149755,1748040625738,213.224941,0.00027397,120]
[362149829,1748040638195,-5.26719898,0.00013699,2]
[362149831,1748040638207,-252.316394,0.00017186,2]
[362149833,1748040638216,-242.75510898,0.00018002,2]
[362149835,1748040638227,-314.57823366,0.00018102,2]
[362149836,1748040638238,-160.0,0.00018102,2]
[362149838,1748040638248,-274.31375634,0.00018102,2]
[362149841,1748040638259,-172.35696233,0.00018171,2]
[362149844,1748040638269,-545.0,0.00018269,2]
[362149846,1748040638279,-300.0,0.00018269,2]
[362149847,1748040638290,-422.85710789,0.0001827,2]
[362149848,1748040638300,-160.0,0.0001827,2]
[362149849,1748040638310,-159.52550825,0.0001827,2]
[362149851,1748040638319,-430.0,0.0001827,2]
[362149853,1748040638329,-430.0,0.0001827,2]
[362149855,1748040638341,-430.0,0.0001827,2]
[362149858,1748040638351,-430.0,0.0001827,2]
[362149860,1748040638361,-217.96133394,0.0001827,2]
[362149863,1748040638374,-212.03866606,0.0001827,2]
[362149866,1748040638384,-430.0,0.0001827,2]
[362149869,1748040638394,-430.0,0.0001827,2]
[362149871,1748040638405,-430.0,0.0001827,2]
[362149873,1748040638415,-430.0,0.0001827,2]
[362149875,1748040638425,-452.35,0.0001827,2]
[362149877,1748040638435,-430.0,0.0001827,2]
[362149878,1748040638445,-430.0,0.0001827,2]
[362149879,1748040638455,-231.15713462,0.0001827,2]
[362149880,1748040638465,-430.0,0.0001827,2]
[362149881,1748040638475,-25970.63383175,0.00018271,2]
[362149882,1748040638491,-24029.36616825,0.00018271,2]
[362149883,1748040638501,-450.0,0.00018271,2]
[362149884,1748040638511,-450.0,0.00018271,2]
[362149885,1748040638521,-450.0,0.00018271,2]
[362149886,1748040638531,-400.0,0.00018271,2]
[362149887,1748040638541,-330.00234385,0.00018271,2]
[362149888,1748040638551,-450.0,0.00018271,2]
[362149889,1748040638560,-450.0,0.00018271,2]
[362149890,1748040638570,-400.0,0.00018271,2]
[362149891,1748040638579,-450.0,0.00018271,2]
[362149892,1748040638590,-430.0,0.00018271,2]
[362149893,1748040638601,-430.0,0.00018271,2]
[362149894,1748040638611,-430.0,0.00018271,2]
[362149895,1748040638620,-430.0,0.00018271,2]
[362149896,1748040638630,-430.0,0.00018271,2]
[362149897,1748040638640,-430.0,0.00018271,2]
[362149898,1748040638650,-430.0,0.00018271,2]
[362149899,1748040638660,-430.0,0.00018271,2]
[362149900,1748040638670,-430.0,0.00018271,2]
[362149901,1748040638679,-430.0,0.00018271,2]
[362149902,1748040638689,-430.0,0.00018271,2]
[362149903,1748040638700,-430.0,0.00018271,2]
[362149905,1748040638711,-430.0,0.00018271,2]
[362149906,1748040638721,-430.0,0.00018271,2]
[362149907,1748040638730,-430.0,0.00018271,2]
[362149908,1748040638740,-430.0,0.00018271,2]
[362149909,1748040638750,-430.0,0.00018271,2]
[362149910,1748040638760,-430.0,0.00018271,2]
[362149911,1748040638770,-430.0,0.00018271,2]
[362149912,1748040638780,-430.0,0.00018271,2]
[362149913,1748040638793,-24900.0,0.00018272,2]
[362149914,1748040638803,-430.0,0.00018544,2]
[362149915,1748040638815,-430.0,0.00018544,2]
[362149916,1748040638825,-515.72,0.00018544,2]
[362149917,1748040638835,-370.0,0.00018544,2]
[362149918,1748040638847,-499.34,0.00018544,2]
[362149919,1748040638858,-430.0,0.00018544,2]
[362149920,1748040638868,-430.0,0.00018544,2]
[362149921,1748040638878,-430.0,0.00018544,2]
[362149922,1748040638888,-430.0,0.00018544,2]
[362149923,1748040638898,-430.0,0.00018544,2]
[362149924,1748040638908,-430.0,0.00018544,2]
[362149925,1748040638917,-430.0,0.00018544,2]
[362149926,1748040638926,-430.0,0.00018545,2]
[362149927,1748040638936,-430.0,0.00018545,2]
[362149928,1748040638946,-430.0,0.00018545,2]
[362149929,1748040638957,-430.0,0.00018545,2]
[362149930,1748040638967,-430.0,0.00018545,2]
[362149931,1748040638978,-430.0,0.00018545,2]
[362149932,1748040638987,-430.0,0.00018545,2]
[362149933,1748040638998,-430.0,0.00018545,2]
[362149934,1748040639008,-430.0,0.00018545,2]
[362149935,1748040639017,-430.0,0.00018545,2]
[362149936,1748040639028,-430.0,0.00018545,2]
[362149937,1748040639038,-430.0,0.00018545,2]
[362149938,1748040639048,-430.0,0.00018545,2]
[362149939,1748040639058,-430.0,0.00018545,2]
[362149940,1748040639068,-430.0,0.00018545,2]
[362149941,1748040639078,-430.0,0.00018545,2]
[362149942,1748040639087,-242.75510897,0.00018718,2]
[362149943,1748040639098,-430.0,0.00018818,2]
[362149944,1748040639108,-430.0,0.00018818,2]
[362149945,1748040639118,-430.0,0.00018818,2]
[362149946,1748040639128,-430.0,0.00018818,2]
[362149947,1748040639138,-430.0,0.00018818,2]
[362149948,1748040639147,-430.0,0.00018818,2]
[362149949,1748040639160,-430.0,0.00018819,2]
[362149950,1748040639171,-430.0,0.00018819,2]
[362149951,1748040639182,-430.0,0.00018819,2]
[362149952,1748040639195,-430.0,0.00018819,2]
[362149953,1748040639205,-430.0,0.00018819,2]
[362149954,1748040639216,-430.0,0.00018819,2]
[362149955,1748040639227,-430.0,0.00018819,2]
[362149956,1748040639238,-430.0,0.00018819,2]
[362149957,1748040639248,-430.0,0.00018819,2]
[362149958,1748040639260,-249.94,0.00018819,2]
[362149959,1748040639271,-277.09,0.00018819,2]
[362149960,1748040639282,-351.35663377,0.000189,2]
[362149961,1748040639293,-430.0,0.00019092,2]
[362149962,1748040639303,-260.83,0.00019092,2]
[362149963,1748040639313,-430.0,0.00019092,2]
[362149964,1748040639323,-430.0,0.00019092,2]
[362149965,1748040639333,-430.0,0.00019092,2]
[362149966,1748040639348,-430.0,0.00019092,2]
[362149967,1748040639487,-500.0,0.00019092,2]
[362149968,1748040639497,-460.36044052,0.00019092,2]
[362149969,1748040639507,-297.12530321,0.00019092,2]
[362149970,1748040639516,-430.0,0.00019093,2]
[362149971,1748040639527,-561.4,0.00019093,2]
[362149972,1748040639536,-430.0,0.00019093,2]
[362149973,1748040639546,-430.0,0.00019093,2]
[362149974,1748040639556,-386.96,0.00019093,2]
[362149975,1748040639565,-430.0,0.00019093,2]
[362149976,1748040639575,-430.0,0.00019093,2]
[362149977,1748040639586,-430.0,0.00019093,2]
[362149978,1748040639599,-430.0,0.00019093,2]
[362149979,1748040639610,-169.5,0.00019366,2]
[362149980,1748040639620,-430.0,0.00019366,2]
[362149981,1748040639630,-199.62,0.00019366,2]
[362149982,1748040639640,-430.0,0.00019366,2]
[362149983,1748040639651,-430.0,0.00019366,2]
[362149984,1748040639660,-403.48,0.00019367,2]
[362149985,1748040639670,-430.0,0.00019367,2]
[362149986,1748040639679,-430.0,0.00019367,2]
[362149987,1748040639689,-430.0,0.00019367,2]
[362149988,1748040639700,-430.0,0.00019367,2]
[362149989,1748040639710,-430.0,0.00019367,2]